fUSD/lending_fUSD_20250120
["ID","MTS","AMOUNT","RATE_DAILY","PERIOD"]
[349757750,1737414650428,-500.0,0.0002,2]
[349757752,1737414650438,-314.27,0.0002,2]
[349757754,1737414650447,-517.43,0.0002,2]
[349757756,1737414650456,-500.0,0.0002,2]
[349757758,1737414650465,-500.0,0.0002,2]
[349757760,1737414650474,-500.0,0.0002,2]
[349757762,1737414650484,-1290.23,0.0002,2]
[349757764,1737414650493,-450.74021859,0.0002,2]
[349757766,1737414650502,-1839.16,0.0002,2]
[349757768,1737414650512,-500.0,0.0002,2]
[349757770,1737414650524,-1177.1,0.0002,2]
[349757772,1737414650533,-1103.41,0.0002,2]
[349757773,1737414650542,-500.0,0.0002,2]
[349757775,1737414650551,-500.0,0.0002,2]
[349757777,1737414650560,-9564.3090081,0.00020019,2]
[349757779,1737414650570,-3024.33569885,0.00020174,2]
[349757781,1737414650579,-9172.44796977,0.00020201,2]
[349757783,1737414650589,-150.0,0.00020223,2]
[349757785,1737414650600,-3901.0,0.00020223,2]
[349757787,1737414650610,-1105.0,0.00020223,2]
[349757789,1737414650624,-196.81984921,0.00020233,2]
[349757791,1737414650634,-500.0,0.00020273,2]
[349757793,1737414650643,-601.07378641,0.00020273,2]
[349757795,1737414650653,-500.0,0.00020273,2]
[349757797,1737414650663,-500.0,0.00020273,2]
[349757799,1737414650671,-500.0,0.00020273,2]
[349757801,1737414650680,-500.0,0.00020273,2]
[349757803,1737414650690,-500.0,0.00020273,2]
[349757805,1737414650699,-500.0,0.00020273,2]
[349757807,1737414650708,-500.0,0.00020273,2]
[349757809,1737414650717,-500.0,0.00020273,2]
[349757811,1737414650726,-500.0,0.00020273,2]
[349757813,1737414650735,-500.0,0.00020273,2]
[349757815,1737414650745,-500.0,0.00020273,2]
[349757817,1737414650753,-500.0,0.00020273,2]
[349757819,1737414650762,-500.0,0.00020273,2]
[349757821,1737414650772,-500.0,0.00020273,2]
[349757823,1737414650781,-500.0,0.00020273,2]
[349757825,1737414650790,-500.0,0.00020273,2]
[349757827,1737414650799,-500.0,0.00020273,2]
[349757829,1737414650808,-521.3110304,0.00020273,2]
[349757831,1737414650817,-554.2,0.00020273,2]
[349757833,1737414650826,-885.11,0.00020273,2]
[349757835,1737414650835,-500.0,0.00020273,2]
[349757837,1737414650844,-500.0,0.00020273,2]
[349757839,1737414650853,-500.0,0.00020273,2]
[349757840,1737414650862,-500.0,0.00020273,2]
[349757842,1737414650873,-500.0,0.00020273,2]
[349757843,1737414650881,-500.0,0.00020273,2]
[349757845,1737414650891,-500.0,0.00020273,2]
[349757846,1737414650900,-614.07,0.00020273,2]
[349757848,1737414650910,-500.0,0.00020273,2]
[349757850,1737414650919,-500.0,0.00020273,2]
[349757852,1737414650928,-500.0,0.00020273,2]
[349757853,1737414650937,-500.0,0.00020273,2]
[349757855,1737414650947,-500.0,0.00020273,2]
[349757856,1737414650956,-500.0,0.00020273,2]
[349757858,1737414650965,-500.0,0.00020273,2]
[349757860,1737414650974,-500.0,0.00020273,2]
[349757861,1737414650983,-500.0,0.00020273,2]
[349757863,1737414650992,-565.61,0.00020273,2]
[349757865,1737414651001,-500.0,0.00020273,2]
[349757866,1737414651010,-500.0,0.00020273,2]
[349757877,1737414651138,-500.0,0.00020273,2]
[349757879,1737414651147,-500.0,0.00020273,2]
[349757880,1737414651156,-255.789155,0.00020273,2]
[349757882,1737414651165,-500.0,0.00020273,2]
[349757884,1737414651174,-500.0,0.00020273,2]
[349757885,1737414651184,-500.0,0.00020273,2]
[349757887,1737414651195,-574.2,0.00020273,2]
[349757889,1737414651204,-500.0,0.00020273,2]
[349757891,1737414651212,-500.0,0.00020273,2]
[349757893,1737414651221,-334.392464,0.00020273,2]
[349757894,1737414651230,-158.28674623,0.00020273,2]
[349757896,1737414651239,-500.0,0.00020273,2]
[349757898,1737414651248,-500.0,0.00020273,2]
[349757899,1737414651257,-500.0,0.00020273,2]
[349757901,1737414651266,-500.0,0.00020273,2]
[349757903,1737414651275,-500.0,0.00020273,2]
[349757905,1737414651283,-200.56,0.00020273,2]
[349757906,1737414651292,-500.0,0.00020273,2]
[349757908,1737414651302,-500.0,0.00020273,2]
[349757910,1737414651310,-500.0,0.00020273,2]
[349757912,1737414651319,-500.0,0.00020273,2]
[349757914,1737414651328,-500.0,0.00020273,2]
[349757915,1737414651337,-500.0,0.00020273,2]
[349757917,1737414651346,-500.0,0.00020273,2]
[349757919,1737414651355,-500.0,0.00020273,2]
[349757920,1737414651364,-500.0,0.00020273,2]
[349757922,1737414651374,-500.0,0.00020273,2]
[349757924,1737414651384,-500.0,0.00020273,2]
[349757926,1737414651393,-500.0,0.00020273,2]
[349757928,1737414651402,-500.0,0.00020273,2]
[349757929,1737414651411,-500.0,0.00020273,2]
[349757931,1737414651420,-500.0,0.00020273,2]
[349757933,1737414651429,-500.0,0.00020273,2]
[349757934,1737414651438,-500.0,0.00020273,2]
[349757936,1737414651447,-500.0,0.00020273,2]
[349757938,1737414651457,-268.62191301,0.00020273,2]
[349757940,1737414651466,-500.0,0.00020273,2]
[349757941,1737414651475,-500.0,0.00020273,2]
[349757943,1737414651485,-500.0,0.00020273,2]
[349757945,1737414651494,-500.0,0.00020273,2]
[349757947,1737414651503,-500.0,0.00020273,2]
[349757948,1737414651512,-500.0,0.00020273,2]
[349757950,1737414651524,-500.0,0.00020273,2]
[349757952,1737414651533,-500.0,0.00020273,2]
[349757954,1737414651542,-500.0,0.00020273,2]
[349757955,1737414651551,-560.76,0.00020273,2]
[349757957,1737414651561,-500.0,0.00020273,2]
[349757959,1737414651570,-152.06599502,0.00020273,2]
[349757961,1737414651578,-500.96,0.00020273,2]
[349757962,1737414651587,-500.0,0.00020273,2]
[349757964,1737414651597,-500.0,0.00020273,2]
[349757966,1737414651606,-500.0,0.00020273,2]
[349757967,1737414651615,-500.0,0.00020273,2]
[349757969,1737414651624,-500.0,0.00020273,2]
[349757971,1737414651635,-500.0,0.00020273,2]
[349757973,1737414651643,-513.43,0.00020273,2]
[349757974,1737414651653,-500.0,0.00020273,2]
[349757976,1737414651662,-500.0,0.00020273,2]
[349757978,1737414651671,-500.0,0.00020273,2]
[349757980,1737414651680,-500.0,0.00020273,2]
[349757981,1737414651689,-500.0,0.00020273,2]
[349757983,1737414651698,-500.0,0.00020273,2]
[349757985,1737414651707,-500.0,0.00020273,2]
[349757986,1737414651716,-519.52,0.00020273,2]
[349757988,1737414651725,-500.0,0.00020273,2]
[349757990,1737414651735,-500.0,0.00020273,2]
[349757992,1737414651744,-500.0,0.00020273,2]
[349757993,1737414651752,-500.0,0.00020273,2]
[349757995,1737414651761,-500.0,0.00020273,2]
[349757997,1737414651771,-500.0,0.00020273,2]
[349757999,1737414651780,-500.0,0.00020273,2]
[349758000,1737414651789,-500.0,0.00020273,2]
[349758002,1737414651798,-500.0,0.00020273,2]
[349758004,1737414651807,-500.0,0.00020273,2]
[349758006,1737414651816,-1536.87,0.00020273,2]
[349758007,1737414651825,-500.0,0.00020273,2]
[349758009,1737414651834,-500.0,0.00020273,2]
[349758011,1737414651843,-500.0,0.00020273,2]
[349758012,1737414651852,-500.0,0.00020273,2]
[349758014,1737414651861,-500.0,0.00020273,2]
[349758016,1737414651871,-1393.31,0.00020273,2]
[349758018,1737414651880,-500.0,0.00020273,2]
[349758019,1737414651889,-500.0,0.00020273,2]
[349758021,1737414651898,-500.0,0.00020273,2]
[349758023,1737414651907,-500.0,0.00020273,2]
[349758024,1737414651916,-500.0,0.00020273,2]
[349758026,1737414651925,-500.0,0.00020273,2]
[349758028,1737414651934,-500.0,0.00020273,2]
[349758030,1737414651943,-500.0,0.00020273,2]
[349758031,1737414651952,-1529.01,0.00020273,2]
[349758033,1737414651961,-500.0,0.00020273,2]
[349758035,1737414651970,-1478.72,0.00020273,2]
[349758037,1737414651979,-500.0,0.00020273,2]
[349758038,1737414651988,-500.0,0.00020273,2]
[349758040,1737414651997,-500.0,0.00020273,2]
[349758042,1737414652007,-832.48,0.00020273,2]
[349758044,1737414652016,-670.79,0.00020273,2]
[349758046,1737414652025,-598.74,0.00020273,2]
[349758048,1737414652033,-1030.25,0.00020273,2]
[349758050,1737414652042,-506.92,0.00020273,2]
[349758052,1737414652052,-1530.61,0.00020273,2]
[349758054,1737414652062,-576.89,0.00020273,2]
[349758056,1737414652071,-500.0,0.00020273,2]
[349758057,1737414652080,-686.52,0.00020273,2]
[349758059,1737414652089,-500.0,0.00020273,2]
[349758061,1737414652098,-500.0,0.00020273,2]
[349758063,1737414652107,-857.02,0.00020273,2]
[349758065,1737414652118,-500.0,0.00020273,2]
[349758067,1737414652127,-500.0,0.00020273,2]
[349758068,1737414652137,-646.84,0.00020273,2]
[349758069,1737414652146,-500.0,0.00020273,2]
[349758070,1737414652155,-632.97,0.00020273,2]
[349758071,1737414652165,-500.0,0.00020273,2]
[349758072,1737414652174,-500.0,0.00020273,2]
[349758073,1737414652183,-1665.63,0.00020273,2]
[349758074,1737414652192,-570.17,0.00020273,2]
[349758075,1737414652200,-744.2,0.00020273,2]
[349758076,1737414652210,-750.3,0.00020273,2]
[349758077,1737414652219,-500.0,0.00020273,2]
[349758078,1737414652228,-500.0,0.00020273,2]
[349758079,1737414652237,-1018.98,0.00020273,2]
[349758080,1737414652246,-976.51,0.00020273,2]
[349758081,1737414652256,-1603.12,0.00020273,2]
[349758082,1737414652265,-792.37,0.00020273,2]
[349758083,1737414652274,-796.06,0.00020273,2]
[349758084,1737414652284,-500.0,0.00020273,2]
[349758085,1737414652293,-1603.27,0.00020273,2]
[349758086,1737414652302,-1763.88,0.00020273,2]
[349758087,1737414652312,-698.99,0.00020273,2]
[349758088,1737414652321,-500.0,0.00020273,2]
[349758089,1737414652332,-500.0,0.00020273,2]
[349758090,1737414652341,-679.29,0.00020273,2]
[349758091,1737414652351,-1663.5,0.00020273,2]
[349758093,1737414652360,-780.06,0.00020273,2]
[349758094,1737414652370,-500.0,0.00020273,2]
[349758096,1737414652379,-500.0,0.00020273,2]
[349758097,1737414652389,-617.16,0.00020273,2]
[349758099,1737414652398,-2476.04,0.00020273,2]
[349758101,1737414652407,-500.0,0.00020273,2]
[349758103,1737414652416,-551.19,0.00020273,2]
[349758105,1737414652426,-3269.84,0.00020273,2]
[349758107,1737414652435,-1636.24,0.00020273,2]
[349758109,1737414652445,-1187.47,0.00020273,2]
[349758111,1737414652454,-500.0,0.00020273,2]
[349758113,1737414652464,-825.56,0.00020273,2]
[349758115,1737414652473,-2476.64,0.00020273,2]
[349758117,1737414652482,-546.75,0.00020273,2]
[349758119,1737414652491,-1139.4,0.00020273,2]
[349758121,1737414652500,-830.8,0.00020273,2]
[349758123,1737414652510,-1178.79,0.00020273,2]
[349758125,1737414652519,-500.0,0.00020273,2]
[349758127,1737414652533,-518.89,0.00020273,2]
[349758129,1737414652542,-2274.58,0.00020273,2]
[349758131,1737414652551,-1876.38,0.00020273,2]
[349758133,1737414652560,-500.0,0.00020273,2]
[349758135,1737414652570,-500.0,0.00020273,2]
[349758137,1737414652579,-891.99,0.00020273,2]
[349758139,1737414652588,-500.0,0.00020273,2]
[349758141,1737414652597,-860.47,0.00020273,2]
[349758143,1737414652606,-1019.64,0.00020273,2]
[349758145,1737414652618,-2072.24,0.00020273,2]
[349758147,1737414652627,-1380.18,0.00020273,2]
[349758149,1737414652635,-500.0,0.00020273,2]
[349758151,1737414652644,-500.0,0.00020273,2]
[349758153,1737414652653,-552.72,0.00020273,2]
[349758154,1737414652662,-569.93,0.00020273,2]
[349758156,1737414652672,-835.44,0.00020273,2]
[349758158,1737414652681,-1403.83,0.00020273,2]
[349758160,1737414652690,-890.53,0.00020273,2]
[349758162,1737414652700,-509.99,0.00020273,2]
[349758164,1737414652709,-1752.0,0.00020273,2]
[349758166,1737414652718,-2907.81,0.00020273,2]
[349758168,1737414652727,-500.0,0.00020273,2]
[349758170,1737414652735,-998.81,0.00020273,2]
[349758172,1737414652744,-1097.25,0.00020273,2]
[349758174,1737414652753,-612.32,0.00020273,2]
[349758176,1737414652763,-500.0,0.00020273,2]
[349758178,1737414652771,-565.08,0.00020273,2]
[349758180,1737414652781,-500.0,0.00020273,2]
[349758182,1737414652790,-500.0,0.00020273,2]
[349758184,1737414652799,-599.08,0.00020273,2]
[349758186,1737414652808,-2063.22,0.00020273,2]
[349758188,1737414652818,-1287.56,0.00020273,2]
[349758190,1737414652827,-1714.26,0.00020273,2]
[349758192,1737414652836,-500.0,0.00020273,2]
[349758194,1737414652845,-500.0,0.00020273,2]
[349758196,1737414652854,-624.59,0.00020273,2]
[349758198,1737414652863,-500.0,0.00020273,2]
[349758200,1737414652874,-872.02,0.00020273,2]
[349758202,1737414652883,-1603.15,0.00020273,2]
[349758204,1737414652892,-500.0,0.00020273,2]
[349758206,1737414652901,-500.0,0.00020273,2]
[349758208,1737414652910,-1444.7,0.00020273,2]
[349758209,1737414652920,-500.0,0.00020273,2]
[349758211,1737414652929,-1837.67,0.00020273,2]
[349758213,1737414652938,-500.0,0.00020273,2]
[349758215,1737414652947,-500.0,0.00020273,2]
[349758217,1737414652955,-624.0,0.00020273,2]
[349758219,1737414652964,-500.0,0.00020273,2]
[349758221,1737414652973,-600.72,0.00020273,2]
[349758223,1737414652982,-1545.64,0.00020273,2]
[349758225,1737414652991,-807.86,0.00020273,2]
[349758227,1737414653000,-500.0,0.00020273,2]
[349758229,1737414653009,-500.0,0.00020273,2]
[349758231,1737414653019,-500.0,0.00020273,2]
[349758233,1737414653027,-500.0,0.00020273,2]
[349758235,1737414653036,-1000.0,0.00020273,2]
[349758237,1737414653045,-517.43,0.00020273,2]
[349758239,1737414653055,-1042.81,0.00020273,2]
[349758241,1737414653064,-500.0,0.00020273,2]
[349758243,1737414653073,-500.0,0.00020273,2]
[349758245,1737414653082,-500.0,0.00020273,2]
[349758247,1737414653092,-1290.23,0.00020273,2]
[349758249,1737414653101,-1839.16,0.00020273,2]
[349758251,1737414653110,-500.0,0.00020273,2]
[349758253,1737414653121,-1177.1,0.00020273,2]
[349758255,1737414653130,-500.0,0.00020273,2]
[349758257,1737414653141,-1103.41,0.00020273,2]
[349758259,1737414653150,-500.0,0.00020273,2]
[349758261,1737414653159,-500.0,0.00020273,2]
[349758263,1737414653168,-9564.3090081,0.00020332,2]
[349758265,1737414653178,-9172.44796977,0.00020484,2]
[349758267,1737414653188,-498.65,0.00020547,2]
[349758269,1737414653197,-500.0,0.00020547,2]
[349758271,1737414653206,-500.0,0.00020547,2]
[349758273,1737414653216,-500.0,0.00020547,2]
[349758275,1737414653225,-500.0,0.00020547,2]
[349758277,1737414653234,-503.53,0.00020547,2]
[349758279,1737414653243,-500.0,0.00020547,2]
[349758281,1737414653251,-500.0,0.00020547,2]
[349758283,1737414653260,-500.0,0.00020547,2]
[349758285,1737414653270,-500.0,0.00020547,2]
[349758287,1737414653278,-500.0,0.00020547,2]
[349758289,1737414653287,-500.0,0.00020547,2]
[349758291,1737414653296,-500.0,0.00020547,2]
[349758292,1737414653305,-500.0,0.00020547,2]
[349758294,1737414653315,-486.6149173,0.00020547,2]
[349758296,1737414653325,-885.11,0.00020547,2]
[349758298,1737414653335,-500.0,0.00020547,2]
[349758300,1737414653344,-251.62710367,0.00020547,2]
[349758315,1737414653471,-500.0,0.00020547,2]
[349758317,1737414653480,-500.0,0.00020547,2]
[349758319,1737414653490,-500.0,0.00020547,2]
[349758321,1737414653499,-500.0,0.00020547,2]
[349758323,1737414653509,-500.0,0.00020547,2]
[349758325,1737414653518,-500.0,0.00020547,2]
[349758327,1737414653532,-500.0,0.00020547,2]
[349758329,1737414653541,-500.0,0.00020547,2]
[349758331,1737414653550,-500.0,0.00020547,2]
[349758332,1737414653559,-500.0,0.00020547,2]
[349758334,1737414653568,-500.0,0.00020547,2]
[349758336,1737414653577,-500.0,0.00020547,2]
[349758339,1737414653586,-565.61,0.00020547,2]
[349758341,1737414653597,-500.0,0.00020547,2]
[349758342,1737414653606,-500.0,0.00020547,2]
[349758345,1737414653616,-500.0,0.00020547,2]
[349758347,1737414653631,-528.59954678,0.00020547,2]
[349758348,1737414653640,-255.789155,0.00020547,2]
[349758350,1737414653650,-500.0,0.00020547,2]
[349758352,1737414653659,-500.0,0.00020547,2]
[349758354,1737414653668,-500.0,0.00020547,2]
[349758356,1737414653677,-574.2,0.00020547,2]
[349758358,1737414653686,-424.84,0.00020547,2]
[349758360,1737414653695,-500.0,0.00020547,2]
[349758362,1737414653704,-334.392464,0.00020547,2]
[349758364,1737414653714,-500.0,0.00020547,2]
[349758366,1737414653723,-500.0,0.00020547,2]
[349758368,1737414653733,-500.0,0.00020547,2]
[349758370,1737414653742,-500.0,0.00020547,2]
[349758372,1737414653752,-500.0,0.00020547,2]
[349758374,1737414653761,-500.0,0.00020547,2]
[349758376,1737414653770,-500.0,0.00020547,2]
[349758378,1737414653780,-500.0,0.00020547,2]
[349758380,1737414653789,-500.0,0.00020547,2]
[349758382,1737414653798,-500.0,0.00020547,2]
[349758384,1737414653808,-500.0,0.00020547,2]
[349758386,1737414653817,-500.0,0.00020547,2]
[349758388,1737414653827,-500.0,0.00020547,2]
[349758390,1737414653836,-531.28,0.00020547,2]
[349758392,1737414653846,-500.0,0.00020547,2]
[349758394,1737414653855,-500.0,0.00020547,2]
[349758396,1737414653863,-500.0,0.00020547,2]
[349758398,1737414653875,-500.0,0.00020547,2]
[349758400,1737414653884,-500.0,0.00020547,2]
[349758402,1737414653893,-524.82630737,0.00020547,2]
[349758404,1737414653901,-500.0,0.00020547,2]
[349758406,1737414653911,-500.0,0.00020547,2]
[349758408,1737414653920,-500.0,0.00020547,2]
[349758410,1737414653929,-500.0,0.00020547,2]
[349758412,1737414653938,-500.0,0.00020547,2]
[349758414,1737414653948,-500.0,0.00020547,2]
[349758416,1737414653957,-500.0,0.00020547,2]
[349758418,1737414653966,-500.0,0.00020547,2]
[349758420,1737414653975,-500.0,0.00020547,2]
[349758422,1737414653985,-500.0,0.00020547,2]
[349758424,1737414653995,-500.0,0.00020547,2]
[349758426,1737414654004,-500.0,0.00020547,2]
[349758428,1737414654013,-500.96,0.00020547,2]
[349758430,1737414654022,-500.0,0.00020547,2]
[349758432,1737414654031,-500.0,0.00020547,2]
[349758434,1737414654040,-500.0,0.00020547,2]
[349758436,1737414654049,-500.0,0.00020547,2]
[349758438,1737414654058,-500.0,0.00020547,2]
[349758440,1737414654067,-500.0,0.00020547,2]
[349758442,1737414654076,-500.0,0.00020547,2]
[349758444,1737414654085,-500.0,0.00020547,2]
[349758446,1737414654094,-500.0,0.00020547,2]
[349758448,1737414654103,-500.0,0.00020547,2]
[349758450,1737414654112,-412.33945152,0.00020547,2]
[349758451,1737414654122,-500.0,0.00020547,2]
[349758453,1737414654135,-500.0,0.00020547,2]
[349758455,1737414654145,-519.52,0.00020547,2]
[349758457,1737414654154,-500.0,0.00020547,2]
[349758459,1737414654163,-500.0,0.00020547,2]
[349758461,1737414654172,-500.0,0.00020547,2]
[349758463,1737414654181,-500.0,0.00020547,2]
[349758465,1737414654191,-500.0,0.00020547,2]
[349758467,1737414654200,-500.0,0.00020547,2]
[349758469,1737414654209,-500.0,0.00020547,2]
[349758471,1737414654218,-500.0,0.00020547,2]
[349758473,1737414654226,-1536.87,0.00020547,2]
[349758475,1737414654235,-500.0,0.00020547,2]
[349758477,1737414654244,-500.0,0.00020547,2]
[349758479,1737414654254,-500.0,0.00020547,2]
[349758481,1737414654263,-500.0,0.00020547,2]
[349758483,1737414654272,-500.0,0.00020547,2]
[349758485,1737414654280,-1393.31,0.00020547,2]
[349758487,1737414654289,-500.0,0.00020547,2]
[349758489,1737414654298,-500.0,0.00020547,2]
[349758491,1737414654307,-500.0,0.00020547,2]
[349758493,1737414654316,-500.0,0.00020547,2]
[349758495,1737414654325,-500.0,0.00020547,2]
[349758497,1737414654334,-500.0,0.00020547,2]
[349758499,1737414654343,-500.0,0.00020547,2]
[349758501,1737414654352,-500.0,0.00020547,2]
[349758503,1737414654361,-1529.01,0.00020547,2]
[349758505,1737414654372,-500.0,0.00020547,2]
[349758507,1737414654381,-1478.72,0.00020547,2]
[349758509,1737414654391,-500.0,0.00020547,2]
[349758511,1737414654400,-500.0,0.00020547,2]
[349758513,1737414654409,-500.0,0.00020547,2]
[349758515,1737414654419,-832.48,0.00020547,2]
[349758516,1737414654428,-670.79,0.00020547,2]
[349758517,1737414654437,-598.74,0.00020547,2]
[349758518,1737414654445,-1030.25,0.00020547,2]
[349758519,1737414654455,-506.92,0.00020547,2]
[349758520,1737414654464,-1530.61,0.00020547,2]
[349758521,1737414654473,-576.89,0.00020547,2]
[349758522,1737414654483,-500.0,0.00020547,2]
[349758523,1737414654492,-686.52,0.00020547,2]
[349758524,1737414654500,-500.0,0.00020547,2]
[349758525,1737414654509,-500.0,0.00020547,2]
[349758526,1737414654520,-857.02,0.00020547,2]
[349758527,1737414654529,-500.0,0.00020547,2]
[349758528,1737414654539,-500.0,0.00020547,2]
[349758529,1737414654549,-646.84,0.00020547,2]
[349758530,1737414654558,-246.03,0.00020547,2]
[349758531,1737414654569,-632.97,0.00020547,2]
[349758532,1737414654578,-500.0,0.00020547,2]
[349758533,1737414654587,-500.0,0.00020547,2]
[349758535,1737414654596,-1665.63,0.00020547,2]
[349758536,1737414654607,-570.17,0.00020547,2]
[349758537,1737414654616,-744.2,0.00020547,2]
[349758539,1737414654626,-750.3,0.00020547,2]
[349758540,1737414654636,-500.0,0.00020547,2]
[349758541,1737414654646,-500.0,0.00020547,2]
[349758542,1737414654655,-1018.98,0.00020547,2]
[349758543,1737414654664,-976.51,0.00020547,2]
[349758544,1737414654674,-1603.12,0.00020547,2]
[349758545,1737414654683,-792.37,0.00020547,2]
[349758546,1737414654693,-796.06,0.00020547,2]
[349758547,1737414654702,-500.0,0.00020547,2]
[349758548,1737414654711,-1603.27,0.00020547,2]
[349758549,1737414654720,-1763.88,0.00020547,2]
[349758550,1737414654729,-698.99,0.00020547,2]
[349758551,1737414654739,-500.0,0.00020547,2]
[349758552,1737414654748,-500.0,0.00020547,2]
[349758553,1737414654757,-679.29,0.00020547,2]
[349758554,1737414654766,-1663.5,0.00020547,2]
[349758555,1737414654775,-780.06,0.00020547,2]
[349758556,1737414654784,-500.0,0.00020547,2]
[349758557,1737414654793,-500.0,0.00020547,2]
[349758558,1737414654802,-617.16,0.00020547,2]
[349758559,1737414654811,-2476.04,0.00020547,2]
[349758560,1737414654820,-500.0,0.00020547,2]
[349758561,1737414654829,-551.19,0.00020547,2]
[349758562,1737414654839,-3269.84,0.00020547,2]
[349758563,1737414654848,-1636.24,0.00020547,2]
[349758564,1737414654858,-1187.47,0.00020547,2]
[349758565,1737414654868,-500.0,0.00020547,2]
[349758566,1737414654877,-825.56,0.00020547,2]
[349758567,1737414654887,-2476.64,0.00020547,2]
[349758568,1737414654896,-1139.4,0.00020547,2]
[349758569,1737414654906,-830.8,0.00020547,2]
[349758570,1737414654915,-1178.79,0.00020547,2]
[349758571,1737414654925,-500.0,0.00020547,2]
[349758572,1737414654936,-518.89,0.00020547,2]
[349758573,1737414654946,-2274.58,0.00020547,2]
[349758574,1737414654955,-1876.38,0.00020547,2]
[349758575,1737414654965,-500.0,0.00020547,2]
[349758576,1737414654974,-500.0,0.00020547,2]
[349758577,1737414654983,-891.99,0.00020547,2]
[349758578,1737414655001,-500.0,0.00020547,2]
[349758579,1737414655010,-860.47,0.00020547,2]
[349758580,1737414655019,-1019.64,0.00020547,2]
[349758581,1737414655028,-2072.24,0.00020547,2]
[349758582,1737414655038,-1380.18,0.00020547,2]
[349758583,1737414655047,-500.0,0.00020547,2]
[349758584,1737414655056,-500.0,0.00020547,2]
[349758585,1737414655065,-552.72,0.00020547,2]
[349758586,1737414655075,-569.93,0.00020547,2]
[349758587,1737414655083,-835.44,0.00020547,2]
[349758588,1737414655093,-1403.83,0.00020547,2]
[349758589,1737414655102,-890.53,0.00020547,2]
[349758590,1737414655111,-509.99,0.00020547,2]
[349758591,1737414655121,-1752.0,0.00020547,2]
[349758592,1737414655131,-2907.81,0.00020547,2]
[349758593,1737414655140,-500.0,0.00020547,2]
[349758594,1737414655149,-998.81,0.00020547,2]
[349758595,1737414655158,-1097.25,0.00020547,2]
[349758596,1737414655168,-612.32,0.00020547,2]
[349758597,1737414655177,-500.0,0.00020547,2]
[349758598,1737414655186,-500.0,0.00020547,2]
[349758599,1737414655196,-565.08,0.00020547,2]
[349758600,1737414655205,-500.0,0.00020547,2]
[349758601,1737414655214,-599.08,0.00020547,2]
[349758602,1737414655223,-2063.22,0.00020547,2]
[349758603,1737414655232,-1287.56,0.00020547,2]
[349758604,1737414655242,-1714.26,0.00020547,2]
[349758605,1737414655251,-500.0,0.00020547,2]
[349758606,1737414655260,-500.0,0.00020547,2]
[349758607,1737414655268,-624.59,0.00020547,2]
[349758608,1737414655278,-500.0,0.00020547,2]
[349758609,1737414655287,-872.02,0.00020547,2]
[349758610,1737414655295,-1603.15,0.00020547,2]
[349758611,1737414655304,-500.0,0.00020547,2]
[349758612,1737414655313,-500.0,0.00020547,2]